lending/lending_fUSD_20251111
["ID","MTS","AMOUNT","RATE_DAILY","PERIOD"]
[393650494,1762878660265,-150.0,0.00048,15]
[393650495,1762878660296,-164.09,0.00048,120]
[393650496,1762878660327,-200.0,0.00048,120]
[393650497,1762878660360,-1801.14478443,0.00048,120]
[393650498,1762878660393,-237.93697122,0.00048,120]
[393650499,1762878660423,-492.34219774,0.00048,120]
[393650500,1762878660455,-531.56724378,0.00048,120]
[393650501,1762878660500,-1032.5134031,0.00048,120]
[393650502,1762878660532,-1810.62003361,0.00048,30]
[393650503,1762878660564,-421.11324602,0.00048,120]
[393650504,1762878660595,-700.0,0.00048,120]
[393650505,1762878660627,-150.0,0.00048,120]
[393650506,1762878660657,-150.0,0.00048,120]
[393650507,1762878660688,-150.0,0.00048,120]
[393650508,1762878660718,-1048.12,0.00048028,30]
[393650509,1762878660748,-1048.12,0.00048028,30]
[393650510,1762878660779,-900.34,0.00048041,120]
[393650511,1762878660809,-155.0,0.000481,120]
[393650512,1762878660839,-183.8,0.00048142,120]
[393650513,1762878660871,-150.0,0.00048359,120]
[393650514,1762878660901,-153.0,0.000484,120]
[393650515,1762878660930,-1738.99,0.000484,30]
[393650516,1762878660960,-1652.35,0.000484,14]
[393650517,1762878660994,-156.87,0.000486,14]
[393650518,1762878661024,-316.47136385,0.000488,120]
[393650519,1762878661055,-374.30574777,0.000489,120]
[393650520,1762878661086,-211.0,0.0004899,30]
[393650521,1762878661115,-211.0,0.0004899,30]
[393650522,1762878661146,-212.0,0.0004899,30]
[393650523,1762878661292,-150.0,0.00049,15]
[393650524,1762878661324,-1000.0,0.00049,120]
[393650525,1762878661359,-3000.0,0.00049,120]
[393650526,1762878661394,-520.83013784,0.00049,120]
[393650527,1762878661429,-2085.77477541,0.00049,120]
[393650528,1762878661462,-180.47192187,0.00049,120]
[393650529,1762878661494,-1140.7435786,0.00049,120]
[393650530,1762878661526,-811.0,0.00049,10]
[393650531,1762878661556,-153.0,0.000491,120]
[393650532,1762878661587,-155.0,0.000492,120]
[393650533,1762878661618,-500.0,0.00049315,120]
[393650534,1762878661647,-500.0,0.00049315,120]
[393650535,1762878661677,-500.0,0.00049315,120]
[393650536,1762878661706,-500.0,0.00049315,120]
[393650537,1762878661741,-432.42536821,0.00049315,120]
[393650538,1762878661771,-200.0,0.00049315,20]
[393650539,1762878661802,-200.0,0.00049315,20]
[393650540,1762878661833,-200.0,0.00049315,20]
[393650541,1762878661866,-200.0,0.00049315,20]
[393650542,1762878661897,-216.88600819,0.00049315,20]
[393650543,1762878661928,-315.39077705,0.00049315,120]
[393650544,1762878661958,-373.07535214,0.00049315,120]
[393650545,1762878661989,-500.0,0.00049315,120]
[393650546,1762878662022,-500.0,0.00049315,120]
[393650547,1762878662051,-500.0,0.00049315,20]
[393650548,1762878662081,-500.0,0.00049315,20]
[393650549,1762878662112,-500.0,0.00049315,20]
[393650550,1762878662142,-500.0,0.00049315,20]
[393650551,1762878662173,-500.0,0.00049315,20]
[393650552,1762878662205,-500.0,0.00049315,20]
[393650553,1762878662235,-500.0,0.00049315,20]
[393650554,1762878662265,-500.0,0.00049315,20]
[393650555,1762878662296,-500.0,0.00049315,20]
[393650556,1762878662326,-380.0,0.00049315,20]
[393650557,1762878662358,-600.0,0.00049315,37]
[393650558,1762878662389,-217.64231924,0.000495,120]
[393650559,1762878662418,-2063.35656899,0.000495,120]
[393650560,1762878662450,-500.0,0.00049589,120]
[393650561,1762878662483,-500.0,0.00049589,120]
[393650562,1762878662513,-861.62685527,0.000498,30]
[393650563,1762878662545,-216.26796616,0.00049863,120]
[393650564,1762878662580,-500.0,0.00049863,120]
[393650565,1762878662612,-1784.12117369,0.00049885,120]
[393650566,1762878662645,-153.0,0.000499,120]
[393650567,1762878662676,-5481.28960413,0.0004999,14]
[393650568,1762878662715,-365.67938349,0.00049999,120]
[393650569,1762878662757,-349.13724912,0.00049999,15]
[393650570,1762878662801,-303.3051314,0.00049999,120]
[393650571,1762878662850,-492.45338281,0.00049999,120]
[393650572,1762878662890,-557.88496474,0.00049999,120]
[393650573,1762878662932,-500.0,0.00049999,120]
[393650574,1762878662975,-500.0,0.00049999,120]
[393650575,1762878663015,-500.0,0.00049999,120]
[393650576,1762878663065,-500.0,0.00049999,120]
[393650577,1762878663109,-500.0,0.00049999,120]
[393650578,1762878663155,-460.53658643,0.00049999,120]
[393650579,1762878663200,-50000.0,0.0005,80]
[393650580,1762878663238,-600.0,0.0005,14]
[393650581,1762878663273,-1199.95048606,0.0005,7]
[393650582,1762878663319,-4654.97874054,0.0005,7]
[393650583,1762878663356,-200.0,0.0005,120]
[393650584,1762878663398,-208.71127627,0.0005,120]
[393650585,1762878663434,-707.00081722,0.0005,120]
[393650586,1762878663473,-795.21425162,0.0005,7]
[393650587,1762878663510,-225.02803257,0.0005,120]
[393650588,1762878663550,-473.40229044,0.0005,120]
[393650589,1762878663588,-165.0694921,0.0005,120]
[393650590,1762878663627,-15045.78190425,0.0005,120]
[393650591,1762878663666,-346.81630198,0.0005,120]
[393650592,1762878663703,-200.0,0.0005,120]
[393650593,1762878663742,-1632.00535129,0.0005,30]
[393650594,1762878663783,-769.66,0.0005,30]
[393650595,1762878663822,-1319.74,0.000501,120]
[393650596,1762878663857,-500.0,0.00050136,120]
[393650597,1762878663891,-155.0,0.000502,120]
[393650598,1762878663922,-1000.0,0.0005028,30]
[393650599,1762878663955,-1000.0,0.00050283,30]
[393650600,1762878663987,-1000.0,0.00050349,30]
[393650601,1762878664021,-500.0,0.0005041,120]
[393650602,1762878664053,-1738.99,0.000505,30]
[393650603,1762878664084,-1652.35,0.000505,14]
[393650604,1762878664117,-1000.0,0.00050568,30]
[393650605,1762878664149,-1000.0,0.00050592,30]
[393650606,1762878664180,-153.0,0.000506,120]
[393650607,1762878664217,-519.48870255,0.00050684,120]
[393650608,1762878664249,-174.11489105,0.00050733,30]
[393650609,1762878664281,-150.0,0.00050749,120]
[393650610,1762878664313,-1000.0,0.00050751,30]
[393650611,1762878664561,-250.0,0.0005087,7]
[393650612,1762878664606,-1000.0,0.00050876,30]
[393650613,1762878664642,-231.28369723,0.00050889,30]
[393650614,1762878664674,-471.75097575,0.000509,120]
[393650615,1762878664706,-372.91913031,0.00051,120]
[393650616,1762878664741,-1063.13448757,0.00051,120]
[393650617,1762878664773,-2065.02680619,0.00051,120]
[393650618,1762878664804,-1424.84520269,0.00051,120]
[393650619,1762878664835,-1000.0,0.00051005,30]
[393650620,1762878664871,-155.0,0.000512,120]
[393650621,1762878664907,-161.884096,0.00051239,60]
[393650622,1762878664943,-185.092166,0.00051239,60]
[393650623,1762878664977,-155.393773,0.00051239,60]
[393650624,1762878665011,-155.922067,0.00051239,60]
[393650625,1762878665044,-3837.799,0.00051268,7]
[393650626,1762878665077,-3837.8,0.00051268,7]
[393650627,1762878665113,-3837.8,0.00051268,7]
[393650628,1762878665144,-3837.8,0.00051268,7]
[393650629,1762878665178,-3837.8,0.00051268,7]
[393650630,1762878665209,-608.0,0.0005129,120]
[393650631,1762878665243,-153.0,0.000513,120]
[393650632,1762878665276,-150.0,0.00051366,30]
[393650633,1762878665309,-1000.0,0.0005145,30]
[393650634,1762878665341,-1271.0,0.00051458,120]
[393650635,1762878665373,-2143.0,0.00051458,120]
[393650636,1762878665405,-565.117,0.00051458,120]
[393650637,1762878665438,-1000.0,0.00051472,30]
[393650638,1762878665471,-150.0,0.00051491,120]
[393650639,1762878665505,-1000.0,0.00051553,30]
[393650640,1762878665536,-1000.0,0.00051566,30]
[393650641,1762878665568,-1000.0,0.00051581,30]
[393650642,1762878665601,-1000.0,0.00051631,30]
[393650643,1762878665638,-178.09965207,0.00051726,7]
[393650644,1762878665669,-223.0315306,0.00051754,30]
[393650645,1762878665700,-1000.0,0.0005177,30]
[393650646,1762878665733,-300.0,0.0005177,7]
[393650647,1762878665764,-250.0,0.0005177,7]
[393650648,1762878665796,-548.21406039,0.00051771,120]
[393650649,1762878665827,-199.28039857,0.00051771,120]
[393650650,1762878665859,-206.43783378,0.00051771,120]
[393650651,1762878665891,-1000.0,0.00051825,30]
[393650652,1762878665922,-769.66,0.000519,30]
[393650653,1762878665954,-200.0,0.00052,120]
[393650654,1762878665985,-156.87,0.00052,30]
[393650655,1762878666015,-812.0,0.00052,30]
[393650656,1762878666045,-155.12881468,0.00052027,120]
[393650657,1762878666075,-781.85,0.00052055,120]
[393650658,1762878666103,-200.0,0.00052058,120]
[393650659,1762878666136,-1000.0,0.00052067,30]
[393650660,1762878666167,-1000.0,0.00052086,30]
[393650661,1762878666198,-153.0,0.000521,120]
[393650662,1762878666228,-154.23021069,0.00052114,30]
[393650663,1762878666259,-1000.0,0.00052133,30]
[393650664,1762878666288,-150.0,0.00052171,30]
[393650665,1762878666320,-1000.0,0.00052172,30]
[393650666,1762878666351,-155.0,0.000522,120]
[393650667,1762878666383,-777.44,0.000523,90]
[393650668,1762878666415,-1000.0,0.00052347,30]
[393650669,1762878666447,-150.0,0.0005237,30]
[393650670,1762878666480,-1000.0,0.00052394,30]
[393650671,1762878666514,-1738.99,0.000524,30]
[393650672,1762878666547,-1652.35,0.000524,14]
[393650673,1762878666580,-1000.0,0.00052415,30]
[393650674,1762878666614,-1000.0,0.00052427,30]
[393650675,1762878666650,-150.0,0.00052429,30]
[393650676,1762878666685,-150.0,0.00052519,30]
[393650677,1762878666717,-1000.0,0.00052601,30]
[393650678,1762878666749,-1000.0,0.00052639,30]
[393650679,1762878666781,-150.0,0.00052681,30]
[393650680,1762878666813,-1171.41540679,0.000527,120]
[393650681,1762878666842,-150.0,0.0005272,30]
[393650682,1762878666872,-1000.0,0.00052724,30]
[393650683,1762878666902,-150.0,0.00052797,30]
[393650684,1762878666933,-153.0,0.000528,120]
[393650685,1762878666962,-200.0,0.00052809,19]
[393650686,1762878666993,-200.0,0.00052809,19]
[393650687,1762878667022,-200.0,0.00052809,19]
[393650688,1762878667050,-200.0,0.00052809,19]
[393650689,1762878667081,-305.87485462,0.00052828,30]
[393650690,1762878667113,-1000.0,0.00052879,30]
[393650691,1762878667144,-1000.0,0.00052888,30]
[393650692,1762878667180,-1000.0,0.00052919,30]
[393650693,1762878667213,-1000.0,0.00052925,30]
[393650694,1762878667243,-150.0,0.00052954,30]
[393650695,1762878667276,-50000.0,0.00053,83]
[393650696,1762878667307,-500.0,0.00053,10]
[393650697,1762878667338,-1000.0,0.00053,120]
[393650698,1762878667371,-403.85453761,0.00053,120]
[393650699,1762878667405,-150.0,0.00053031,120]
[393650700,1762878667437,-1000.0,0.00053068,30]
[393650701,1762878667558,-900.34,0.00053088,120]
[393650702,1762878667614,-1000.0,0.0005314,30]
[393650703,1762878667646,-150.0,0.00053147,30]
[393650704,1762878667679,-1000.0,0.00053211,30]
[393650705,1762878667711,-155.0,0.000533,120]
[393650706,1762878667746,-1000.0,0.00053336,30]
[393650707,1762878667778,-150.0,0.00053348,30]
[393650708,1762878667811,-1000.0,0.00053362,30]
[393650709,1762878667843,-1040.34572747,0.000534,120]
[393650710,1762878667879,-150.0,0.00053411,30]
[393650711,1762878667911,-1000.0,0.00053428,30]
[393650712,1762878667943,-150.0,0.00053453,30]
[393650713,1762878667977,-150.0,0.00053475,30]
[393650714,1762878668012,-153.0,0.000535,120]
[393650715,1762878668048,-1000.0,0.00053501,30]
[393650716,1762878668080,-150.0,0.00053515,30]
[393650717,1762878668116,-1000.0,0.00053523,30]
[393650718,1762878668149,-150.0,0.00053557,30]
[393650719,1762878668182,-150.0,0.00053582,30]
[393650720,1762878668214,-150.0,0.00053611,30]
[393650721,1762878668247,-1000.0,0.00053667,30]
[393650722,1762878668278,-150.0,0.00053701,30]
[393650723,1762878668311,-505.87243499,0.00053708,120]
[393650724,1762878668344,-153.0,0.00053708,120]
[393650725,1762878668379,-153.0,0.00053708,120]
[393650726,1762878668411,-153.0,0.00053711,120]
[393650727,1762878668443,-1000.0,0.00053729,30]
[393650728,1762878668476,-150.0,0.00053776,30]
[393650729,1762878668510,-153.0,0.00053796,120]
[393650730,1762878668543,-1000.0,0.00053854,30]
[393650731,1762878668577,-20725.59795999,0.000539,120]
[393650732,1762878668614,-150.0,0.00053924,120]
[393650733,1762878668648,-150.0,0.00053973,30]
[393650734,1762878668681,-7761.0,0.00054,120]
[393650735,1762878668713,-200.0,0.00054,120]
[393650736,1762878668752,-1103.30980691,0.00054,120]
[393650737,1762878668790,-284.90875871,0.00054,120]
[393650738,1762878668820,-1434.88856341,0.00054,120]
[393650739,1762878668851,-1328.91810946,0.00054,120]
[393650740,1762878668884,-2581.28350774,0.00054,120]
[393650741,1762878668916,-150.0,0.00054029,30]
[393650742,1762878668947,-208.85288909,0.00054052,30]
[393650743,1762878668980,-1000.0,0.00054083,30]
[393650744,1762878669013,-1000.0,0.00054123,30]
[393650745,1762878669045,-150.0,0.00054176,30]
[393650746,1762878669077,-150.0,0.00054198,30]
[393650747,1762878669108,-150.0,0.000542,30]
[393650748,1762878669143,-1000.0,0.00054215,30]
[393650749,1762878669176,-150.0,0.00054222,120]
[393650750,1762878669208,-608.0,0.0005429,120]
[393650751,1762878669242,-155.0,0.000543,120]
[393650752,1762878669274,-153.0,0.000543,120]
[393650753,1762878669306,-337.64362582,0.00054356,120]
[393650754,1762878669338,-1000.0,0.00054403,30]
[393650755,1762878669371,-1000.0,0.00054423,30]
[393650756,1762878669403,-2143.0,0.00054458,120]
[393650757,1762878669437,-150.0,0.00054481,30]
[393650758,1762878669470,-1035.16669238,0.000545,30]
[393650759,1762878669503,-1000.0,0.00054545,30]
[393650760,1762878669536,-150.0,0.00054561,30]
[393650761,1762878669569,-150.0,0.00054588,30]
[393650762,1762878669599,-1800.0,0.00054615,120]
[393650763,1762878669632,-1000.0,0.00054617,30]
[393650764,1762878669662,-1000.0,0.00054674,30]
[393650765,1762878669692,-215.0738,0.00054709,30]
[393650766,1762878669726,-500.0,0.00054794,120]
[393650767,1762878669755,-500.0,0.00054794,120]
[393650768,1762878669788,-500.0,0.00054794,120]
[393650769,1762878669820,-385.50582511,0.00054794,120]
[393650770,1762878669849,-207.4,0.00054794,39]
[393650771,1762878669884,-500.0,0.00054795,5]
[393650772,1762878669917,-250.0,0.00054795,5]
[393650773,1762878669953,-151.0,0.00054795,5]
[393650774,1762878669990,-500.0,0.00054795,5]
[393650775,1762878670025,-250.0,0.00054795,5]
[393650776,1762878670069,-151.0,0.00054795,5]
[393650777,1762878670102,-250.0,0.00054795,5]
[393650778,1762878670136,-500.0,0.00054795,5]
[393650779,1762878670168,-151.0,0.00054795,5]
[393650780,1762878670201,-250.0,0.00054795,5]
[393650781,1762878670235,-151.0,0.00054795,5]
[393650782,1762878670269,-250.0,0.00054795,5]
[393650783,1762878670303,-151.0,0.00054795,5]
[393650784,1762878670339,-151.0,0.00054795,5]
[393650785,1762878670376,-500.0,0.00054795,5]
[393650786,1762878670408,-289.5339604,0.00054795,5]
[393650787,1762878670442,-151.0,0.00054795,5]
[393650788,1762878670474,-152.48973594,0.00054795,5]
[393650789,1762878670506,-500.0,0.00054795,5]
[393650790,1762878670540,-151.0,0.00054795,5]
[393650791,1762878670571,-264.48609165,0.00054795,5]
[393650792,1762878670605,-500.0,0.00054795,5]
[393650793,1762878670638,-151.0,0.00054795,5]
[393650794,1762878670670,-500.0,0.00054795,5]
[393650795,1762878670702,-151.0,0.00054795,5]
[393650796,1762878670734,-151.0,0.00054795,5]
[393650797,1762878670868,-250.0,0.00054795,5]
[393650798,1762878670900,-151.0,0.00054795,5]
[393650799,1762878670935,-250.0,0.00054795,5]
[393650800,1762878670967,-250.0,0.00054795,5]
[393650801,1762878670997,-151.0,0.00054795,5]
[393650802,1762878671028,-250.0,0.00054795,5]
[393650803,1762878671059,-250.0,0.00054795,5]
[393650804,1762878671091,-151.0,0.00054795,5]
[393650805,1762878671126,-250.0,0.00054795,5]
[393650806,1762878671160,-250.0,0.00054795,5]
[393650807,1762878671191,-151.0,0.00054795,5]
[393650808,1762878671223,-250.0,0.00054795,5]
[393650809,1762878671255,-250.0,0.00054795,5]
[393650810,1762878671285,-151.0,0.00054795,5]
[393650811,1762878671318,-250.0,0.00054795,5]
[393650812,1762878671355,-194.4058916,0.00054795,5]
[393650813,1762878671388,-151.0,0.00054795,5]
[393650814,1762878671422,-500.0,0.00054795,5]
[393650815,1762878671454,-250.0,0.00054795,5]
[393650816,1762878671486,-151.0,0.00054795,5]
[393650817,1762878671519,-500.0,0.00054795,5]
[393650818,1762878671553,-250.0,0.00054795,5]
[393650819,1762878671585,-500.0,0.00054795,5]
[393650820,1762878671618,-250.0,0.00054795,5]
[393650821,1762878671649,-500.0,0.00054795,5]
[393650822,1762878671680,-193.63459898,0.00054795,5]
[393650823,1762878671710,-250.0,0.00054795,5]
[393650824,1762878671744,-250.0,0.00054795,5]
[393650825,1762878671777,-177.57710388,0.00054795,5]
[393650826,1762878671810,-151.0,0.00054795,5]
[393650827,1762878671840,-250.0,0.00054795,5]
[393650828,1762878671877,-255.49147654,0.00054795,5]
[393650829,1762878671909,-181.08010149,0.00054795,5]
[393650830,1762878671944,-250.0,0.00054795,5]
[393650831,1762878671976,-173.63104048,0.00054795,5]
[393650832,1762878672008,-250.0,0.00054795,5]
[393650833,1762878672040,-250.0,0.00054795,5]
[393650834,1762878672071,-250.0,0.00054795,5]
[393650835,1762878672103,-250.0,0.00054795,5]
[393650836,1762878672138,-250.0,0.00054795,5]
[393650837,1762878672187,-250.0,0.00054795,5]
[393650838,1762878672221,-250.0,0.00054795,5]
[393650839,1762878672256,-250.0,0.00054795,5]
[393650840,1762878672290,-250.0,0.00054795,5]
[393650841,1762878672326,-250.0,0.00054795,5]
[393650842,1762878672360,-151.0,0.00054795,5]
[393650843,1762878672396,-250.0,0.00054795,5]
[393650844,1762878672431,-250.0,0.00054795,5]
[393650845,1762878672465,-151.0,0.00054795,5]
[393650846,1762878672498,-151.0,0.00054795,5]
[393650847,1762878672531,-250.0,0.00054795,5]
[393650848,1762878672566,-283.97030963,0.00054795,5]
[393650849,1762878672599,-151.0,0.00054795,5]
[393650850,1762878672635,-151.0,0.00054795,5]
[393650851,1762878672668,-250.0,0.00054795,5]
[393650852,1762878672699,-153.91462054,0.00054795,5]
[393650853,1762878672731,-151.0,0.00054795,5]
[393650854,1762878672763,-250.0,0.00054795,5]
[393650855,1762878672795,-151.0,0.00054795,5]
[393650856,1762878672827,-250.0,0.00054795,5]
[393650857,1762878672859,-151.0,0.00054795,5]
[393650858,1762878672891,-250.0,0.00054795,5]
[393650859,1762878672924,-151.0,0.00054795,5]
[393650860,1762878672955,-250.0,0.00054795,5]
[393650861,1762878672999,-151.0,0.00054795,5]
[393650862,1762878673041,-250.0,0.00054795,5]
[393650863,1762878673087,-151.0,0.00054795,5]
[393650864,1762878673133,-177.10850097,0.00054795,5]
[393650865,1762878673181,-151.0,0.00054795,5]
[393650866,1762878673225,-151.0,0.00054795,5]
[393650867,1762878673260,-151.0,0.00054795,5]
[393650868,1762878673293,-151.0,0.00054795,5]
[393650869,1762878673327,-496.47127164,0.00054795,5]
[393650870,1762878673362,-151.0,0.00054795,5]
[393650871,1762878673399,-514.84070869,0.00054795,5]
[393650872,1762878673457,-151.0,0.00054795,5]
[393650873,1762878673491,-533.88981491,0.00054795,5]
[393650874,1762878673524,-151.0,0.00054795,5]
[393650875,1762878673557,-553.64373806,0.00054795,5]
[393650876,1762878673590,-239.84119403,0.00054795,5]
[393650877,1762878673622,-248.71531821,0.00054795,5]
[393650878,1762878673653,-257.91778498,0.00054795,5]
[393650879,1762878673684,-267.46074303,0.00054795,5]
[393650880,1762878673716,-600.0,0.00054795,39]
[393650881,1762878673752,-541.92135048,0.00054795,8]
[393650882,1762878673999,151.0,0.00054795,5]
[393650883,1762878674260,151.0,0.00054795,5]
[393650884,1762878674315,1336.7,0.00054617,120]
[393650885,1762878674352,151.0,0.00054795,5]
[393650886,1762878674395,1336.7,0.00054005,120]
[393650887,1762878674466,424.9,0.00053393,120]
[393650888,1762878674519,151.0,0.00054795,5]
[393650889,1762878683426,-500.0,0.00037989,15]
[393650890,1762878683478,-542.0,0.00041752,30]
[393650891,1762878683511,-542.0,0.00042183,30]
[393650892,1762878683549,-542.0,0.00042613,30]
[393650893,1762878683583,-542.0,0.00043043,30]
[393650894,1762878683616,-542.0,0.00043474,30]
[393650895,1762878683653,-542.0,0.00043904,30]
[393650896,1762878683687,-542.0,0.00044335,30]
[393650897,1762878683725,-160.0,0.00049314,120]
[393650898,1762878683757,-160.0,0.00049314,120]
[393650899,1762878683791,-160.0,0.00049314,120]
[393650900,1762878683825,-160.0,0.00049314,120]
[393650901,1762878683857,-160.0,0.00049314,120]
[393650902,1762878683892,-151.0,0.00049314,120]
[393650903,1762878683929,-151.0,0.00049314,120]
[393650904,1762878683965,-160.0,0.00049314,120]
[393650905,1762878683999,-151.0,0.00049314,120]
[393650906,1762878684030,-176.78201091,0.00049314,120]
[393650907,1762878684065,-151.0,0.00049314,120]
[393650908,1762878684103,-151.0,0.00049314,120]
[393650909,1762878684137,-151.0,0.00049314,120]
[393650910,1762878684170,-151.0,0.00049314,120]
[393650911,1762878684205,-244.25,0.0005305,120]
[393650912,1762878684238,-1000.0,0.00054999,120]
[393650913,1762878684273,-500.0,0.00054999,60]
[393650914,1762878684305,-250.0,0.00054999,60]
[393650915,1762878684338,-557.5788265,0.00054999,60]
[393650916,1762878684376,-151.0,0.00054999,60]
[393650917,1762878684413,-250.0,0.00054999,60]
[393650918,1762878684455,-500.0,0.00054999,65]
[393650919,1762878684493,-250.0,0.00054999,65]
[393650920,1762878684529,-151.0,0.00054999,60]
[393650921,1762878684566,-250.0,0.00054999,65]
[393650922,1762878684601,-151.0,0.00054999,65]
[393650923,1762878684638,-151.0,0.00054999,65]
[393650924,1762878684679,-500.0,0.00054999,60]
[393650925,1762878684714,-500.0,0.00054999,65]
[393650926,1762878684756,-250.0,0.00054999,60]
[393650927,1762878684793,-250.0,0.00054999,65]
[393650928,1762878684827,-250.0,0.00054999,60]
[393650929,1762878684861,-250.0,0.00054999,65]
[393650930,1762878684897,-500.0,0.00054999,60]
[393650931,1762878684932,-500.0,0.00054999,65]
[393650932,1762878684964,-168.3888056,0.00054999,60]
[393650933,1762878684999,-174.61919141,0.00054999,65]
[393650934,1762878685033,-151.0,0.00054999,60]
[393650935,1762878685066,-151.0,0.00054999,65]
[393650936,1762878685098,-168.3888056,0.00054999,60]
[393650937,1762878685130,-174.61919141,0.00054999,65]
[393650938,1762878685163,-250.0,0.00054999,60]
[393650939,1762878685196,-250.0,0.00054999,65]
[393650940,1762878685233,-250.0,0.00054999,60]
[393650941,1762878685266,-250.0,0.00054999,65]
[393650942,1762878685296,-151.0,0.00054999,60]
[393650943,1762878685328,-151.0,0.00054999,65]
[393650944,1762878685364,-673.37345586,0.00054999,60]
[393650945,1762878685400,-461.67526834,0.00054999,60]
[393650946,1762878685434,-478.75725327,0.00054999,65]
[393650947,1762878685466,-151.0,0.00054999,60]
[393650948,1762878685501,-151.0,0.00054999,65]
[393650949,1762878685537,-50000.0,0.00055,75]
[393650950,1762878685576,-83590.0,0.00055,15]
[393650951,1762878685611,-1000.0,0.00055,120]
[393650952,1762878685647,-2240.41262116,0.00055,120]
[393650953,1762878685682,-214.64900255,0.00055,120]
[393650954,1762878685719,-298.41266415,0.00055,120]
[393650955,1762878685754,-500.0,0.00055,30]
[393650956,1762878685787,-9648.82,0.00055,120]
[393650957,1762878685824,-154.05,0.00055,120]
[393650958,1762878685997,-2000.0,0.00055,120]
[393650959,1762878686028,-153.0,0.00055,120]
[393650960,1762878686057,-153.112212,0.00055,60]
[393650961,1762878686088,-159.349384,0.00055,60]
[393650962,1762878686126,-157.070847,0.00055,60]
[393650963,1762878686156,-155.106291,0.00055,60]
[393650964,1762878686188,-151.44337,0.00055,60]
[393650965,1762878686217,-160.603281,0.00055,60]
[393650966,1762878686254,-166.908883,0.00055,60]
[393650967,1762878686291,-161.884096,0.00055,60]
[393650968,1762878686325,-185.092166,0.00055,60]
[393650969,1762878686358,-155.393773,0.00055,60]
[393650970,1762878686393,-155.922067,0.00055,60]
[393650971,1762878686426,-166.908883,0.00055,60]
[393650972,1762878686460,-159.349384,0.00055,60]
[393650973,1762878686494,-155.106292,0.00055,60]
[393650974,1762878686526,-7654.0,0.00055,120]
[393650975,1762878686559,-155.393773,0.00055,60]
[393650976,1762878686591,-185.092166,0.00055,60]
[393650977,1762878686623,-155.393773,0.00055,60]
[393650978,1762878686655,-155.922069,0.00055,60]
[393650979,1762878686687,-185.092166,0.00055,60]
[393650980,1762878686719,-150.0,0.00055071,120]
[393650981,1762878686756,-3852.05,0.00055205,120]
[393650982,1762878686788,-1336.7,0.00055229,120]
[393650983,1762878686821,-155.0,0.000553,120]
[393650984,1762878686852,-500.0,0.000555,15]
[393650985,1762878686885,-177.51,0.00055556,120]
[393650986,1762878686916,-1000.0,0.00055556,120]
[393650987,1762878686949,-1000.0,0.00055556,120]
[393650988,1762878686980,-1000.0,0.00055556,120]
[393650989,1762878687013,-1000.0,0.00055556,120]
[393650990,1762878687045,-1000.0,0.00055556,120]
[393650991,1762878687078,-1000.0,0.00055556,120]
[393650992,1762878687111,-1000.0,0.00055556,120]
[393650993,1762878687143,-1000.0,0.00055556,120]